Cogmind - Beta 13 @@@ ROGUE MODE // 2024.05.31 @ 22:19:28 Player: Falling_Sands Result: Destroyed by as-90207 with Assembled Heavy Rifle Performance ------------- Evolutions (0) 0 Regions Visited (2) 400 Robots Destroyed (21) 105 Value Destroyed (345) 345 Prototype IDs (2) 40 Alien Tech Used (0) 0 Bonus (0) 0 TOTAL SCORE: 890 Bonus ------- None Cogmind --------- Core Integrity 0/250 Matter 249/300 Energy 248/250 System Corruption 0% Temperature Cool (1) Movement Treading (240) Ox1 Location -10/Mines Parts ------- > --- POWER (1) -------- Ion Engine > --- PROPULSION (2) --- Light Treads > --- UTILITY (2) ------ Large Storage Unit Seismic Detector > --- WEAPON (2) ------- (None) > --- INVENTORY (15) --- Ion Engine Light Ion Engine Small Storage Unit Large Storage Unit Shield Generator Field Recycling Unit (0) Light EM Pulse Cannon Light EM Pulse Cannon Light Assault Rifle Light Assault Rifle Grenade Launcher Mining Claw Peak State ------------ > --- POWER ------------ Ion Engine > --- PROPULSION ------- Light Treads Light Treads > --- UTILITY ---------- Large Storage Unit Field Recycling Unit > --- WEAPON ----------- Light EM Pulse Cannon Rocket Launcher > --- INVENTORY -------- Ion Engine Light Ion Engine Small Storage Unit Large Storage Unit Seismic Detector Shield Generator Light EM Pulse Cannon Light Assault Rifle Light Assault Rifle Grenade Launcher Mining Claw [Rating: 11] Favorites ----------- Power Ion Engine Engine Ion Engine Propulsion Light Treads Treads Light Treads Utility Large Storage Unit Device Field Recycling Unit Storage Large Storage Unit Processor Targeting Computer Weapon Light Assault Rifle Energy Gun Medium Laser Energy Cannon Light EM Pulse Cannon Ballistic Gun Light Assault Rifle Launcher Rocket Launcher Slashing Weapon Mining Claw Build | -11 -10 -10 ------- Run | Yrd Mat Min Slots Evolved . | . . . Power . | . . . Propulsion . | . . . Utility . | . . . Weapon . | . . . Parts Attached 29 | 7 19 3 Power 2 | 1 1 . Engine 2 | 1 1 . Core . | . . . Reactor . | . . . Propulsion 6 | 2 4 . Treads 6 | 2 4 . Leg . | . . . Wheel . | . . . Hover . | . . . Flight . | . . . Utility 6 | 2 3 1 Device 3 | 1 1 1 Storage 2 | 1 1 . Processor 1 | . 1 . Hackware . | . . . Protection . | . . . Artifact . | . . . Weapon 15 | 2 11 2 Energy Gun 3 | 1 2 . Energy Cannon 1 | . 1 . Ballistic Gun 5 | 1 3 1 Ballistic Cannon . | . . . Launcher 5 | . 4 1 Special Weapon . | . . . Impact Weapon . | . . . Slashing Weapon 1 | . 1 . Piercing Weapon . | . . . Special Melee Weapon . | . . . Unidentified Prototypes . | . . . Parts Lost 4 | . 2 2 Power . | . . . Propulsion 2 | . 1 1 Utility . | . . . Weapon 2 | . 1 1 Highest Loss Streak 2 | . 1 2 To Critical Strikes . | . . . Average Slot Usage (%) 99 | . 99 99 Engine 14 | . 14 14 Treads 27 | . 27 28 Device 4 | . 2 14 Storage 14 | . 14 14 Processor 9 | . 11 . Energy Gun 6 | . 7 . Energy Cannon 3 | . 1 13 Ballistic Gun 13 | . 13 12 Slashing Weapon 3 | . 4 . Naked Turns . | . . . Heaviest Build 41 | 14 41 41 Greatest Support 40 | 40 40 40 Greatest Overweight (x) 2 | 2 1 1 Average Overweight (x) . | . . . Largest Inventory Capacity 15 | 8 15 15 Average Capacity 12 | 6 12 15 Most Carried 12 | 1 11 12 Average Carried 7 | . 7 11 Final Capacity 15 | 8 15 15 Final Carried 12 | 1 11 12 Class Distribution -------------------- 100% | Mutant Dominant Class ---------------- Mutant | -10/Materials Mutant | -10/Mines Resources | -11 -10 -10 ----------- Run | Yrd Mat Min Matter Collected 524 | 274 242 8 Remotely . | . . . Salvage Created 356 | 77 264 15 Parts 36 | 3 28 5 Haulers Intercepted 1 | . 1 . Recyclers Shooed . | . . . Parts Field Recycled 8 | . 8 . Retrieved Matter 46 | . 46 . Parts Self-Destructed . | . . . Prevented . | . . . Kills | -11 -10 -10 ------- Run | Yrd Mat Min Combat Hostiles Destroyed 18 | . 12 6 Guns 3 | . 3 . AOE 15 | . 9 6 Classes Destroyed 8 | 2 4 2 Builder 1 | . . 1 Tunneler 2 | 1 1 . Hauler 1 | . 1 . Recycler 1 | 1 . . Watcher 1 | . 1 . Swarmer 12 | . 9 3 Grunt 3 | . 3 . Assembled 3 | . . 3 Best Kill Streak 6 | 1 6 4 Combat Bots Only 6 | . 6 3 Max Kills in Single Turn 3 | 1 3 3 Gunslinging . | . . . Exploded 3 | . 3 3 Melee . | . . . Uniques/NPCs Destroyed . | . . . Combat | -11 -10 -10 -------- Run | Yrd Mat Min Hostile Shots Fired 51 | . 40 11 Missed 12 | . 10 2 Damage Taken 875 | . 552 323 Core 257 | . 198 59 Absorbed by Shields . | . . . Core Remaining (%) 100 | 100 . . Volleys Fired 43 | 4 34 5 Largest 2 | 2 2 2 Hottest 89 | 70 70 89 Shots Fired 69 | 8 55 6 Gun 56 | 8 48 . Cannon 1 | . . 1 Launcher 12 | . 7 5 Special . | . . . Kinetic 34 | 4 30 . Thermal 22 | 4 18 . Explosive 12 | . 7 5 Electromagnetic 1 | . . 1 Robot Hit Streak 14 | 2 14 1 Robot Miss Streak 4 | 1 4 3 Penetration Max . | . . . Secondary Targets . | . . . Shots Hit Robots 35 | 5 29 1 Core Hits 44 | 3 27 14 Critical Kills . | . . . Critical Parts Destroyed 1 | . 1 . Critical Strikes 4 | 2 2 . Burn 3 | 2 1 . Destroy 1 | . 1 . Melee Attacks 4 | . 4 . Impact . | . . . Slashing 4 | . 4 . Piercing . | . . . Sneak Attacks . | . . . Combat Hostiles . | . . . Follow-up Attacks . | . . . Damage Inflicted 1432 | 55 831 546 Guns 364 | 55 309 . Cannons . | . . . Explosions 1060 | . 514 546 Melee . | . . . Ramming 8 | . 8 . Kinetic 164 | 17 147 . Thermal 351 | 38 313 . Explosive 909 | . 363 546 Electromagnetic . | . . . Impact . | . . . Slashing . | . . . Piercing . | . . . Highest Corruption . | . . . Average Corruption . | . . . Corruption Purged . | . . . Corruption Blocked . | . . . Overload Shots . | . . . Overflow Damage 147 | . 132 15 Projectiles . | . . . Explosions 147 | . 132 15 Melee . | . . . Knockbacks . | . . . Impact . | . . . Kinetic . | . . . Secondary . | . . . Self-Inflicted Damage 295 | . 249 46 Shots 7 | . 6 1 Rammed 3 | . 3 . Targets Rammed 3 | . 3 . Kicked . | . . . Crushed . | . . . Highest Temperature 102 | 40 102 27 Average Temperature 32 | 20 38 10 Received Heat Transfer 128 | . 108 20 Siege Activations . | . . . Robots Corrupted . | . . . Combat Hostiles . | . . . Parts Fried . | . . . Impact Corruptions . | . . . Robots Melted . | . . . Combat Hostiles . | . . . Parts Melted 2 | 1 1 . Heat Transferred 914 | 259 655 . Parts Sabotaged . | . . . Parts Stolen . | . . . Parts Stripped . | . . . Power Chain Reactions 1 | . 1 . Alert | -11 -10 -10 ------- Run | Yrd Mat Min Peak Influence 352 | 10 352 143 Initial 53 | . 6 53 Average 130 | 2 144 133 Maximum Alert Level 1 | . 1 . Low Security (%) 88 | 100 85 100 Level 1 11 | . 14 . Level 2 . | . . . Level 3 . | . . . Level 4 . | . . . Level 5 . | . . . High Security . | . . . Max Security . | . . . Squads Dispatched 1 | . 1 . Investigation . | . . . Extermination . | . . . Reinforcement 1 | . 1 . Assault . | . . . Garrison . | . . . Intercept . | . . . Searches Triggered . | . . . Construction Impeded . | . . . Haulers Reinforced . | . . . Active Scanning Responses . | . . . Cargo Convoy Interrupts . | . . . Stealth | -11 -10 -10 --------- Run | Yrd Mat Min Distress Signals 2 | . 1 1 Communications Jammed . | . . . Distress Signals . | . . . Times Spotted 34 | . 25 9 Peak Tracking Total 7 | . 6 7 Tactical Retreats . | . . . Traps | -11 -10 -10 ------- Run | Yrd Mat Min Traps Triggered 2 | . 2 . Indirectly . | . . . Trap Hack Attempts . | . . . Triggered . | . . . Disarmed . | . . . Reprogrammed . | . . . Reused . | . . . Traps Extracted . | . . . Installed . | . . . Triggered . | . . . Objects Rigged 5 | . 5 . Exploded 1 | . 1 . Machines | -11 -10 -10 ---------- Run | Yrd Mat Min Machines Disabled 8 | . 8 . Max in Single Turn 5 | . 5 . Machines Repaired . | . . . Machines Dismantled . | . . . Machines Sabotaged . | . . . Overloaded Fab Kills . | . . . Hacking | -11 -10 -10 --------- Run | Yrd Mat Min Machines Accessed 6 | . 6 . Terminals 5 | . 5 . Fabricators . | . . . Repair Stations . | . . . Recycling Units 1 | . 1 . Scanalyzers . | . . . Garrison Access . | . . . Total Hacks 15 | . 15 . Successful 9 | . 9 . Failed 6 | . 6 . Catastrophic . | . . . Database Lockouts . | . . . Manual 8 | . 8 . Terminals 14 | . 14 . Fabricators . | . . . Repair Stations . | . . . Recycling Units 1 | . 1 . Scanalyzers . | . . . Garrison Access . | . . . Terminal Hacks 5 | . 5 . Prototype ID Bank 1 | . 1 . Alert Level 2 | . 2 . Unreport Threat 1 | . 1 . Locate Traps 1 | . 1 . Fabricator Hacks . | . . . Repair Station Hacks . | . . . Recycling Unit Hacks 1 | . 1 . Retrieve Components 1 | . 1 . Scanalyzer . | . . . Garrison Access Hacks . | . . . Unauthorized Hacks 3 | . 3 . Terminals 3 | . 3 . Botnet 2 | . 2 . Detonate 1 | . 1 . Fabricators . | . . . Repair Stations . | . . . Recycling Units . | . . . Scanalyzers . | . . . Garrison Access . | . . . Data Cores Recovered . | . . . Used . | . . . Hacking Detections 5 | . 5 . Full Trace Events 2 | . 2 . Feedback Events . | . . . Feedback Blocked . | . . . Robot Schematics Acquired . | . . . Robots Built . | . . . Authchips . | . . . Time . | . . . Total Robot Build Rating . | . . . Part Schematics Acquired . | . . . Parts Built . | . . . Authchips . | . . . Time . | . . . Total Part Build Rating . | . . . Parts Repaired . | . . . Time . | . . . Parts Recycled . | . . . Recycled Matter . | . . . Retrieved Matter . | . . . Retrieved Components 10 | . 10 . Parts Scanalyzed . | . . . Part Schematics Acquired . | . . . Parts Damaged . | . . . Bothacking | -11 -10 -10 ------------ Run | Yrd Mat Min Used RIF Installer . | . . . Robots Hacked . | . . . Non-combat . | . . . Combat . | . . . Robot Hacks Applied . | . . . Relay Couplers Released . | . . . Fabnet Peak Effective % . | . . . Robots Rewired . | . . . Allies Hacked . | . . . Hacks Repelled . | . . . Allies | -11 -10 -10 -------- Run | Yrd Mat Min Total Allies . | . . . Largest Group . | . . . Highest-Rated Group . | . . . Highest-Rated Ally . | . . . Total Orders . | . . . Ally Attacks . | . . . Total Damage . | . . . Kills . | . . . Allies Corrupted . | . . . Allies Melted . | . . . Intel | -11 -10 -10 ------- Run | Yrd Mat Min Robot Analysis Total . | . . . Derelict Logs Recovered . | . . . Drone Launches . | . . . Drone Recoveries . | . . . Exploration | -11 -10 -10 ------------- Run | Yrd Mat Min Turns Passed 1503 | 127 1146 230 Spaces Moved 826 | 87 621 118 Core 38 | 38 . . Treads 788 | 49 621 118 Legs . | . . . Wheels . | . . . Hover . | . . . Flight . | . . . Fastest Speed 50 | 50 160 160 Average Speed 157 | 121 160 164 Slowest Speed 240 | 160 240 240 Overloaded Moves . | . . . Propulsion Burnouts . | . . . Robots Hopped . | . . . Cave-ins Triggered . | . . . Exploration Rate (%) 43 | 5 96 28 Regions Visited 2 Branch Regions 1 Pre-discovered Areas . | . . . Known Exits Taken . | . . . Unknown Exits Taken 2 | 1 1 . Scrap Searched . | . . . Spaces Dug 4 | . 4 . Terrain Destroyed 128 | . 96 32 Melee 4 | . 4 . Projectile . | . . . AOE 124 | . 92 32 Terrain Rammed . | . . . Walls Destroyed . | . . . Machines Disabled . | . . . Actions | -11 -10 -10 --------- Run | Yrd Mat Min Total 951 | 98 704 149 Wait 34 | . 12 22 Move 824 | 86 620 118 Hop . | . . . Pick Up 11 | 1 10 . Fast Attach 12 | 7 5 . Attach 3 | . 3 . Detach 3 | . 2 1 Swap 14 | . 11 3 Drop . | . . . Fire 43 | 4 34 5 Melee 4 | . 4 . Ram . | . . . Kick . | . . . Crush 3 | . 3 . Escape Stasis . | . . . Rewire . | . . . Trap . | . . . Miscellaneous . | . . . Route ------- -11/Scrapyard -10/Materials (discovered 5 exits: [*Mat x3] / [*Min x2]) -10/Mines (discovered 1 exit: [*Mat]) History --------- Turn | Location | Event 13 | -11/Scrapyard | Discovered new exit (range 16) 128 | -11/Scrapyard | Entered Materials 304 | -10/Materials | Build established: Mutant 427 | -10/Materials | Discovered new exit (range 12) 568 | -10/Materials | Discovered new exit (range 12) 722 | -10/Materials | Discovered new exit (range 12) 757 | -10/Materials | Core integrity fell below 50% 928 | -10/Materials | Discovered new exit (range 14) 1249 | -10/Materials | Discovered new exit (range 8) 1274 | -10/Materials | Entered Mines 1348 | -10/Mines | Discovered new exit (range 15) 1479 | -10/Mines | Assembled infested the area 1498 | -10/Mines | Core integrity fell below 20% 1504 | -10/Mines | Destroyed by as-90207 with Assembled Heavy Rifle Last Messages --------------- 01489_ The unstable cave ceiling collapses. 01489_ U-05 Engineer builds a Wall. 01490_ The unstable cave ceiling collapses. 01495_ U-05 Engineer destroyed. 01495_ as-81937 destroyed. 01496_ as-40004 powers down. 01497_ as-08757 destroyed. 01497_ Destroyed Asb. F-torch. 01497_ as-72546 destroyed. 01497_ C-30 ARC bursts open, deploying its payload. 01497_ D-53 Grenadier unfolds itself. 01500_ The unstable cave ceiling collapses. 01500_ as-36858 destroyed. 01500_ Rocket Launcher destroyed. 01501_ The unstable cave ceiling collapses. 01502_ Lgt. Treads destroyed. 01503_ The unstable cave ceiling collapses. 01503_ K-01 Serf collects debris. 01504_ R-06 Scavenger destroyed. 01504_ as-76988 destroyed. Map ----- +----------------------------------------------------+ | ?????????????????????????????????????????????????? | | ##???????????????????????????????????????????????? | | ##??????????????????????????????????????????????? | | < #??????????????????????????????????????????????? | | #??????????????????????????????????????????????? | | ##?????????????????????????????????????????????? | | #?????????????????????????????????????????????? | | #?????????????????????????????????????????????? | | #?????????????????????????????????????????????? | | #?????????????????????????????????????????????? | | ##????????????????????????????????????????????? | | #????????????????????????????????????????????? | | ##?????????????????????????? ????????????????? | | ##???????????????????????? ??????????????? | | #???????????????????????? # ????????????? | | ##?######??????????????? ????????????? | | ### ######?????????# ???????????? | | k%## ##??????## ???????????? | | ### ##???## ??????????? | | ##?## ### dd ##### ??????????? | | #???# ##?### ## ??????????? | | ##???# ##????## * #??????????? | | #???# ##??????#### % a% #??????????? | | ????# #???????????# # ???????????? | | #???# ##??????????## # #??????????? | | ###?##????????????# @ ##??????????? | | ####????????????### a ????????? | | ##?????????????# # a =$ ????????? | | #?????????????## ##?? =| ?????????? | | #??????????????### ###?????? # ?????????? | | # ##????????????????####??????????????????????? | | # ##???????????????????????????????????????????? | | # ##????????????????????????????????????????????? | | #????????????????????????????????????????????? | | #####????????????????????????????????????????????? | | ?????????????????????????????????????????????????? | | ?????????????????????????????????????????????????? | | ?????????????????????????????????????????????????? | | ?????????????????????????????????????????????????? | | ?????????????????????????????????????????????????? | | ?????????????????????????????????????????????????? | | ?????????????????????????????????????????????????? | | ?????????????????????????????????????????????????? | | ?????????????????????????????????????????????????? | | ?????????????????????????????????????????????????? | | ?????????????????????????????????????????????????? | | ?????????????????????????????????????????????????? | | | | | | | +----------------------------------------------------+ Best States ------------- Heat Dissipation 25 Energy Generation 10 Energy Capacity 250 Matter Stores 300 Matter Capacity 300 Sight Range 16 Terrain Scan Density 10 Evasion (%) 50 Targeting Accuracy 5 Recoil Reduction 2 Item Schematics ----------------- None Robot Schematics ------------------ None Fabricated ------------ Nothing Alien Tech Used ----------------- None Achievements -------------- None Challenges ------------ None Game ------ Seed NullReflectiveNanosword Manual? 0 Play Time 00:45:06 Cumulative 62.0 hours Start 2024.05.31 @ 21:32:06 End 2024.05.31 @ 22:19:28 Sessions 1 Manual Loads 0 Difficulty Rogue Special Mode None Game No. 40 Rogue 40 Adventurer 0 Explorer 0 Win Type - Total 0 Types 0/0/0/0/0/0/0/0/0 Lore% 27 Gallery% 46 Achievement% 29 Wizard Run 0 Options --------- Layout 0 ASCII 1 Keyboard 1 Movement Arrows Keybinds 0 Fullscreen 1 Font 36/Terminus Map View 76x50 Zoom Use 0% Tactical HUD 1 Map Filters NONE Filters NONE Steam 1 RUN: 4f9bac63-d9b9-4417-903e-9032a89c07f5